[Event "*** Titled Tuesday Blitz"]
[Site "Chess.com"]
[Date "2021.04.20"]
[Round "10"]
[White "RobertoJBM"]
[Black "Koalaskakistis"]
[Result "0-1"]
[WhiteElo "2714"]
[BlackElo "2577"]
[TimeControl "180+1"]
[EndTime "11:55:32 PDT"]
[Termination "Koalaskakistis won on time"]

1. d4 {[%clk 0:03:00.9]} 1... f5 {[%clk 0:02:59.7]} 2. g3 {[%clk 0:02:59]} 2...
Nf6 {[%clk 0:02:59.4]} 3. Bg2 {[%clk 0:02:58.6]} 3... e6 {[%clk 0:03:00.1]} 4.
Nf3 {[%clk 0:02:56]} 4... Be7 {[%clk 0:02:58.9]} 5. O-O {[%clk 0:02:56]} 5...
O-O {[%clk 0:02:59.3]} 6. c4 {[%clk 0:02:56.6]} 6... d6 {[%clk 0:02:58.9]} 7.
Nc3 {[%clk 0:02:55.8]} 7... Ne4 {[%clk 0:02:59.3]} 8. Nxe4 {[%clk 0:02:55.6]}
8... fxe4 {[%clk 0:03:00.2]} 9. Nd2 {[%clk 0:02:52.4]} 9... d5 {[%clk 0:03:01]}
10. cxd5 {[%clk 0:02:47.9]} 10... exd5 {[%clk 0:03:00.2]} 11. f3 {[%clk
0:02:48.3]} 11... exf3 {[%clk 0:02:58.3]} 12. Nxf3 {[%clk 0:02:38.8]} 12... c5
{[%clk 0:02:55.7]} 13. Ne5 {[%clk 0:02:28.9]} 13... Nc6 {[%clk 0:02:54.7]} 14.
Nxc6 {[%clk 0:02:26.5]} 14... bxc6 {[%clk 0:02:54.6]} 15. Bf4 {[%clk 0:02:23.4]}
15... Qb6 {[%clk 0:02:52.3]} 16. dxc5 {[%clk 0:02:15.7]} 16... Bxc5+ {[%clk
0:02:52.1]} 17. Kh1 {[%clk 0:02:16.2]} 17... Bf5 {[%clk 0:02:51.9]} 18. Rc1
{[%clk 0:02:12.7]} 18... Rae8 {[%clk 0:02:33.8]} 19. b3 {[%clk 0:02:10.9]} 19...
Ba3 {[%clk 0:02:28.3]} 20. Rxc6 {[%clk 0:02:08.8]} 20... Qxc6 {[%clk 0:02:20.8]}
21. Bxd5+ {[%clk 0:02:08.1]} 21... Qxd5+ {[%clk 0:02:21.7]} 22. Qxd5+ {[%clk
0:02:08.1]} 22... Kh8 {[%clk 0:02:22.6]} 23. Qa5 {[%clk 0:02:05.3]} 23... Bb2
{[%clk 0:02:14.8]} 24. e3 {[%clk 0:02:00.8]} 24... Bh3 {[%clk 0:02:04.7]} 25.
Rd1 {[%clk 0:01:57.7]} 25... h6 {[%clk 0:01:43.4]} 26. Qh5 {[%clk 0:01:44.2]}
26... Bf5 {[%clk 0:01:43.1]} 27. Rd6 {[%clk 0:01:38]} 27... Rc8 {[%clk
0:01:30.8]} 28. Kg1 {[%clk 0:00:45.4]} 28... Rc2 {[%clk 0:01:22]} 29. g4 {[%clk
0:00:20.5]} 29... Be4 {[%clk 0:01:15.2]} 30. Rd7 {[%clk 0:00:17.8]} 30... Rfc8
{[%clk 0:01:02.7]} 31. Kf1 {[%clk 0:00:05.9]} 31... Rg2 {[%clk 0:00:41.1]} 32.
Bc7 {[%clk 0:00:05.7]} 32... Bf6 {[%clk 0:00:31.6]} 33. h4 {[%clk 0:00:04.3]}
33... Bf3 {[%clk 0:00:23.7]} 34. Qf7 {[%clk 0:00:03.4]} 34... Rxg4 {[%clk
0:00:19.5]} 35. e4 {[%clk 0:00:03.3]} 35... Bxe4 {[%clk 0:00:18.9]} 36. Ke2
{[%clk 0:00:03.3]} 36... Bh7 {[%clk 0:00:17]} 37. Kd2 {[%clk 0:00:02.9]} 37...
Rxh4 {[%clk 0:00:17]} 38. Ke3 {[%clk 0:00:03.2]} 38... Rg4 {[%clk 0:00:17.2]}
39. Kf3 {[%clk 0:00:03.5]} 39... Rg5 {[%clk 0:00:15.9]} 40. Ke3 {[%clk
0:00:03.7]} 40... Bg8 {[%clk 0:00:10]} 0-1

[Event "*** Titled Tuesday Blitz"]
[Site "Chess.com"]
[Date "2021.04.20"]
[Round "10"]
[White "OlifantCZ"]
[Black "AthanasiusLefebvre"]
[Result "1-0"]
[WhiteElo "2263"]
[BlackElo "2049"]
[TimeControl "180+1"]
[EndTime "11:55:33 PDT"]
[Termination "OlifantCZ won on time"]

1. c4 {[%clk 0:03:00.9]} 1... Nf6 {[%clk 0:02:58.2]} 2. g3 {[%clk 0:03:00.6]}
2... g6 {[%clk 0:02:57.3]} 3. Bg2 {[%clk 0:03:00.8]} 3... Bg7 {[%clk 0:02:57.9]}
4. Nc3 {[%clk 0:03:01.5]} 4... O-O {[%clk 0:02:57]} 5. e4 {[%clk 0:03:02.1]}
5... d6 {[%clk 0:02:56.3]} 6. Nge2 {[%clk 0:03:02.6]} 6... c5 {[%clk 0:02:53.4]}
7. O-O {[%clk 0:03:02.9]} 7... Nc6 {[%clk 0:02:53.9]} 8. d3 {[%clk 0:03:02.1]}
8... a6 {[%clk 0:02:53.9]} 9. h3 {[%clk 0:03:00.1]} 9... Rb8 {[%clk 0:02:53.8]}
10. a4 {[%clk 0:03:00.2]} 10... Bd7 {[%clk 0:02:50.9]} 11. f4 {[%clk 0:02:57.7]}
11... h5 {[%clk 0:02:45.7]} 12. Be3 {[%clk 0:02:50.5]} 12... Ne8 {[%clk
0:02:41.8]} 13. f5 {[%clk 0:02:46.5]} 13... Nc7 {[%clk 0:02:37.8]} 14. g4 {[%clk
0:02:45.6]} 14... hxg4 {[%clk 0:02:35.2]} 15. hxg4 {[%clk 0:02:45.4]} 15... b5
{[%clk 0:02:35.4]} 16. axb5 {[%clk 0:02:43.5]} 16... axb5 {[%clk 0:02:34.8]} 17.
b3 {[%clk 0:02:39.7]} 17... Ne5 {[%clk 0:01:52.8]} 18. Qd2 {[%clk 0:02:18.1]}
18... Nxg4 {[%clk 0:01:51.3]} 19. fxg6 {[%clk 0:02:10.3]} 19... fxg6 {[%clk
0:01:48.6]} 20. Rxf8+ {[%clk 0:02:07.3]} 20... Qxf8 {[%clk 0:01:47]} 21. Rf1
{[%clk 0:02:06.6]} 21... Qe8 {[%clk 0:01:26.4]} 22. Bg5 {[%clk 0:02:03.8]} 22...
bxc4 {[%clk 0:01:22.5]} 23. bxc4 {[%clk 0:02:03.3]} 23... Ne6 {[%clk 0:01:16.2]}
24. Bh4 {[%clk 0:01:59.8]} 24... Nd4 {[%clk 0:01:15.9]} 25. Nd5 {[%clk
0:01:37.1]} 25... Rb2 {[%clk 0:00:47.2]} 26. Qxb2 {[%clk 0:00:23]} 26... Nf3+
{[%clk 0:00:44.8]} 27. Rxf3 {[%clk 0:00:23.5]} 27... Bxb2 {[%clk 0:00:44.5]} 28.
Nxe7+ {[%clk 0:00:23.1]} 28... Kg7 {[%clk 0:00:33.5]} 29. Nd5 {[%clk 0:00:22.5]}
29... Be6 {[%clk 0:00:18.3]} 30. Ndf4 {[%clk 0:00:20.2]} 30... Bf7 {[%clk
0:00:14.5]} 31. Bh3 {[%clk 0:00:18.3]} 31... Ne5 {[%clk 0:00:13]} 32. Rg3 {[%clk
0:00:17.7]} 32... Bd4+ {[%clk 0:00:10.4]} 33. Nxd4 {[%clk 0:00:16.9]} 33... cxd4
{[%clk 0:00:10.6]} 34. Kg2 {[%clk 0:00:15.6]} 34... Qa4 {[%clk 0:00:09.3]} 35.
Ne2 {[%clk 0:00:15.3]} 35... Qc2 {[%clk 0:00:09.1]} 36. Kf1 {[%clk 0:00:12.2]}
36... Nxd3 {[%clk 0:00:09.1]} 37. Bg4 {[%clk 0:00:12.7]} 37... Qd1+ {[%clk
0:00:04.6]} 38. Kg2 {[%clk 0:00:13]} 38... Ne1+ {[%clk 0:00:03.1]} 39. Kf2
{[%clk 0:00:12]} 39... Qd2 {[%clk 0:00:02.9]} 40. Bd7 {[%clk 0:00:09.3]} 40...
d3 {[%clk 0:00:02.2]} 41. Bg4 {[%clk 0:00:08.3]} 1-0

[Event "*** Titled Tuesday Blitz"]
[Site "Chess.com"]
[Date "2021.04.20"]
[Round "10"]
[White "AshotParvanyan"]
[Black "politeplayer"]
[Result "1-0"]
[WhiteElo "2535"]
[BlackElo "2268"]
[TimeControl "180+1"]
[EndTime "11:55:34 PDT"]
[Termination "AshotParvanyan won by resignation"]

1. Nf3 {[%clk 0:03:00.9]} 1... d5 {[%clk 0:02:57.4]} 2. d4 {[%clk 0:03:00.7]}
2... Nf6 {[%clk 0:02:56.2]} 3. c4 {[%clk 0:03:00.7]} 3... e6 {[%clk 0:02:56.1]}
4. g3 {[%clk 0:03:00.9]} 4... c5 {[%clk 0:02:55.3]} 5. cxd5 {[%clk 0:03:00.4]}
5... exd5 {[%clk 0:02:55.5]} 6. Bg2 {[%clk 0:03:00.1]} 6... Nc6 {[%clk
0:02:55.9]} 7. O-O {[%clk 0:03:00.1]} 7... Be7 {[%clk 0:02:56.5]} 8. Nc3 {[%clk
0:03:00.3]} 8... O-O {[%clk 0:02:56.2]} 9. Bg5 {[%clk 0:03:00.4]} 9... c4 {[%clk
0:02:56.4]} 10. b3 {[%clk 0:02:58.1]} 10... Qa5 {[%clk 0:02:53.7]} 11. Na4
{[%clk 0:02:51.5]} 11... Bf5 {[%clk 0:02:41.5]} 12. Ne5 {[%clk 0:02:22.9]} 12...
c3 {[%clk 0:02:11.9]} 13. Nxc6 {[%clk 0:01:04.3]} 13... bxc6 {[%clk 0:02:11.4]}
14. Rc1 {[%clk 0:01:03.6]} 14... c2 {[%clk 0:02:02.6]} 15. Qd2 {[%clk 0:00:59]}
15... Qxd2 {[%clk 0:01:57.1]} 16. Bxd2 {[%clk 0:00:59.9]} 16... Ba3 {[%clk
0:01:57]} 17. Ra1 {[%clk 0:00:58.1]} 17... Rfe8 {[%clk 0:01:51.3]} 18. e3 {[%clk
0:00:31.2]} 18... Bd3 {[%clk 0:01:48.5]} 19. Rfe1 {[%clk 0:00:28.5]} 19... Bb5
{[%clk 0:01:42.1]} 20. Nc5 {[%clk 0:00:15.9]} 20... Bb2 {[%clk 0:01:35.8]} 21.
Rac1 {[%clk 0:00:08.1]} 21... Bxc1 {[%clk 0:01:33]} 22. Rxc1 {[%clk 0:00:09]}
22... Ne4 {[%clk 0:01:24.9]} 23. Bxe4 {[%clk 0:00:06.7]} 23... dxe4 {[%clk
0:01:25.2]} 24. Rxc2 {[%clk 0:00:07.2]} 24... a5 {[%clk 0:01:20.6]} 25. a4
{[%clk 0:00:06.8]} 25... Bd3 {[%clk 0:01:20.6]} 26. Nxd3 {[%clk 0:00:06.8]}
26... exd3 {[%clk 0:01:20.7]} 27. Rc3 {[%clk 0:00:05.3]} 27... Rab8 {[%clk
0:01:18.6]} 28. Rxd3 {[%clk 0:00:05.6]} 28... c5 {[%clk 0:01:19]} 29. dxc5
{[%clk 0:00:05.3]} 29... Red8 {[%clk 0:01:18.5]} 30. Rxd8+ {[%clk 0:00:05.5]}
30... Rxd8 {[%clk 0:01:18.5]} 31. Bxa5 {[%clk 0:00:06.4]} 31... Rd1+ {[%clk
0:01:15.9]} 32. Kg2 {[%clk 0:00:06.3]} 32... Kf8 {[%clk 0:01:13.8]} 33. b4
{[%clk 0:00:06.1]} 33... Ke7 {[%clk 0:01:13.5]} 34. b5 {[%clk 0:00:06.4]} 34...
Ra1 {[%clk 0:01:10.4]} 35. Bb6 {[%clk 0:00:05.9]} 35... Rxa4 {[%clk 0:01:09.6]}
36. c6 {[%clk 0:00:05.6]} 36... Kd6 {[%clk 0:01:06.1]} 37. Bd4 {[%clk
0:00:04.9]} 37... f6 {[%clk 0:00:48.5]} 38. Kf3 {[%clk 0:00:05.2]} 38... Rb4
{[%clk 0:00:44.6]} 39. Bc5+ {[%clk 0:00:05.2]} 39... Kxc5 {[%clk 0:00:42.8]} 40.
c7 {[%clk 0:00:05.6]} 40... Rxb5 {[%clk 0:00:33.1]} 41. c8=Q+ {[%clk 0:00:05.9]}
41... Kd6 {[%clk 0:00:33.4]} 42. Qg8 {[%clk 0:00:06.4]} 42... Rf5+ {[%clk
0:00:32.8]} 43. Ke2 {[%clk 0:00:06.8]} 43... Rg5 {[%clk 0:00:32.9]} 44. Qxh7
{[%clk 0:00:06.7]} 44... Ke6 {[%clk 0:00:32.4]} 45. h4 {[%clk 0:00:06.6]} 45...
Rb5 {[%clk 0:00:30.5]} 46. Qxg7 {[%clk 0:00:06.8]} 46... Rb2+ {[%clk 0:00:29.8]}
47. Kf3 {[%clk 0:00:06.8]} 47... Rc2 {[%clk 0:00:29.5]} 48. h5 {[%clk
0:00:07.2]} 48... f5 {[%clk 0:00:29.4]} 49. h6 {[%clk 0:00:07.4]} 49... f4
{[%clk 0:00:29.8]} 50. gxf4 {[%clk 0:00:07.8]} 50... Kf5 {[%clk 0:00:29.5]} 51.
Qg5+ {[%clk 0:00:07.2]} 51... Ke6 {[%clk 0:00:29.2]} 52. Qg6+ {[%clk 0:00:07.8]}
1-0

[Event "*** Titled Tuesday Blitz"]
[Site "Chess.com"]
[Date "2021.04.20"]
[Round "10"]
[White "KacperPolOK"]
[Black "Cambek64"]
[Result "0-1"]
[WhiteElo "2368"]
[BlackElo "2474"]
[TimeControl "180+1"]
[EndTime "11:55:36 PDT"]
[Termination "Cambek64 won by checkmate"]

1. e4 {[%clk 0:02:59]} 1... e6 {[%clk 0:02:55.9]} 2. d4 {[%clk 0:02:58.8]} 2...
d5 {[%clk 0:02:55.4]} 3. Nd2 {[%clk 0:02:58.4]} 3... Nc6 {[%clk 0:02:55.3]} 4.
Bb5 {[%clk 0:02:56]} 4... a6 {[%clk 0:02:47.2]} 5. Bxc6+ {[%clk 0:02:47.4]} 5...
bxc6 {[%clk 0:02:47.5]} 6. Ngf3 {[%clk 0:02:48.1]} 6... Nf6 {[%clk 0:02:46.1]}
7. e5 {[%clk 0:02:44.4]} 7... Nd7 {[%clk 0:02:46.1]} 8. O-O {[%clk 0:02:42.5]}
8... c5 {[%clk 0:02:46.6]} 9. c3 {[%clk 0:02:38.1]} 9... cxd4 {[%clk 0:02:45.2]}
10. cxd4 {[%clk 0:02:36.4]} 10... c5 {[%clk 0:02:44.2]} 11. Ng5 {[%clk
0:02:22.3]} 11... Be7 {[%clk 0:02:40.5]} 12. f4 {[%clk 0:02:10.5]} 12... cxd4
{[%clk 0:02:22.9]} 13. Ngf3 {[%clk 0:02:03.8]} 13... O-O {[%clk 0:02:03.6]} 14.
Nb3 {[%clk 0:02:01]} 14... Nc5 {[%clk 0:01:55]} 15. Nxc5 {[%clk 0:01:55.2]}
15... Bxc5 {[%clk 0:01:53.9]} 16. Nxd4 {[%clk 0:01:54.6]} 16... Bd7 {[%clk
0:01:51.6]} 17. Be3 {[%clk 0:01:48.8]} 17... Bb5 {[%clk 0:01:50.8]} 18. Rf3
{[%clk 0:01:45.4]} 18... Qe7 {[%clk 0:01:37]} 19. Rh3 {[%clk 0:01:39]} 19... f5
{[%clk 0:01:31]} 20. Kh1 {[%clk 0:01:22.4]} 20... Bxd4 {[%clk 0:01:27.3]} 21.
Bxd4 {[%clk 0:01:22.1]} 21... Rfc8 {[%clk 0:01:24.2]} 22. a4 {[%clk 0:01:00.8]}
22... Be8 {[%clk 0:01:22.2]} 23. Raa3 {[%clk 0:00:54.7]} 23... Rc4 {[%clk
0:01:21.6]} 24. Rac3 {[%clk 0:00:34.5]} 24... Bxa4 {[%clk 0:01:15.6]} 25. Qe1
{[%clk 0:00:26.8]} 25... Rac8 {[%clk 0:01:07.9]} 26. Rhe3 {[%clk 0:00:21.9]}
26... Rxc3 {[%clk 0:01:05.7]} 27. Rxc3 {[%clk 0:00:21]} 27... Rxc3 {[%clk
0:01:03.5]} 28. Qxc3 {[%clk 0:00:21.9]} 28... h6 {[%clk 0:01:01.3]} 29. h3
{[%clk 0:00:22]} 29... Kh7 {[%clk 0:00:59.6]} 30. Qc8 {[%clk 0:00:21.1]} 30...
Bb5 {[%clk 0:00:55.1]} 31. g3 {[%clk 0:00:20.1]} 31... Bd3 {[%clk 0:00:53.8]}
32. Kh2 {[%clk 0:00:16.3]} 32... Be4 {[%clk 0:00:53.2]} 33. Bc5 {[%clk
0:00:15.5]} 33... Qf7 {[%clk 0:00:52.4]} 34. Qxa6 {[%clk 0:00:12.9]} 34... Qh5
{[%clk 0:00:42.1]} 35. Qf1 {[%clk 0:00:12.8]} 35... g5 {[%clk 0:00:42.4]} 36. b4
{[%clk 0:00:11.5]} 36... gxf4 {[%clk 0:00:41.7]} 37. gxf4 {[%clk 0:00:11]} 37...
Qh4 {[%clk 0:00:39.9]} 38. b5 {[%clk 0:00:11]} 38... d4 {[%clk 0:00:33]} 39.
Bxd4 {[%clk 0:00:11]} 39... Bd5 {[%clk 0:00:32.7]} 40. b6 {[%clk 0:00:09.7]}
40... Qe7 {[%clk 0:00:32]} 41. Qc1 {[%clk 0:00:08.4]} 41... Qg7 {[%clk
0:00:27.1]} 42. Qd2 {[%clk 0:00:06.1]} 42... Qb7 {[%clk 0:00:24.9]} 43. Be3
{[%clk 0:00:05.8]} 43... Qc6 {[%clk 0:00:25.1]} 44. Qf2 {[%clk 0:00:03.4]} 44...
Qc4 {[%clk 0:00:22.8]} 45. Qd2 {[%clk 0:00:02.7]} 45... Qe4 {[%clk 0:00:22.5]}
46. Qc1 {[%clk 0:00:01.3]} 46... Qg2# {[%clk 0:00:21.1]} 0-1

[Event "*** Titled Tuesday Blitz"]
[Site "Chess.com"]
[Date "2021.04.20"]
[Round "10"]
[White "Zq1"]
[Black "Andrii_Prydun"]
[Result "0-1"]
[WhiteElo "2507"]
[BlackElo "2354"]
[TimeControl "180+1"]
[EndTime "11:55:37 PDT"]
[Termination "Andrii_Prydun won on time"]

1. d4 {[%clk 0:03:00.9]} 1... d5 {[%clk 0:02:59.7]} 2. c4 {[%clk 0:03:00.6]}
2... c6 {[%clk 0:03:00.6]} 3. cxd5 {[%clk 0:03:00.3]} 3... cxd5 {[%clk
0:03:01.5]} 4. Bg5 {[%clk 0:02:59.5]} 4... Nf6 {[%clk 0:03:02.4]} 5. Bxf6 {[%clk
0:02:59]} 5... gxf6 {[%clk 0:03:03.3]} 6. Nc3 {[%clk 0:02:58.7]} 6... e6 {[%clk
0:03:02.8]} 7. e3 {[%clk 0:02:57.4]} 7... Nc6 {[%clk 0:03:02.1]} 8. Nge2 {[%clk
0:02:55.2]} 8... Bd7 {[%clk 0:02:55.2]} 9. g3 {[%clk 0:02:55.1]} 9... Rc8 {[%clk
0:02:53.5]} 10. Bg2 {[%clk 0:02:55.1]} 10... Bd6 {[%clk 0:02:50.3]} 11. O-O
{[%clk 0:02:54.6]} 11... Na5 {[%clk 0:02:45]} 12. b3 {[%clk 0:02:49.4]} 12...
Ba3 {[%clk 0:02:41.2]} 13. Qd3 {[%clk 0:02:45.8]} 13... f5 {[%clk 0:02:40.7]}
14. Nb5 {[%clk 0:02:33.7]} 14... Bxb5 {[%clk 0:02:29.8]} 15. Qxb5+ {[%clk
0:02:32.7]} 15... Kf8 {[%clk 0:02:30.7]} 16. Qa4 {[%clk 0:02:24]} 16... Bd6
{[%clk 0:02:15.1]} 17. Rac1 {[%clk 0:02:22.1]} 17... Nc6 {[%clk 0:01:56.5]} 18.
Rc2 {[%clk 0:02:10.5]} 18... Kg7 {[%clk 0:01:45.9]} 19. Rfc1 {[%clk 0:02:08.7]}
19... a6 {[%clk 0:01:43.8]} 20. a3 {[%clk 0:02:01.3]} 20... Qe8 {[%clk
0:01:27.5]} 21. Bf1 {[%clk 0:01:45.5]} 21... Ra8 {[%clk 0:01:14.1]} 22. Rxc6
{[%clk 0:01:04.2]} 22... bxc6 {[%clk 0:01:13.8]} 23. Rxc6 {[%clk 0:01:04.5]}
23... Bxa3 {[%clk 0:01:08.8]} 24. Nf4 {[%clk 0:00:57.3]} 24... Qd7 {[%clk
0:00:35.8]} 25. Nd3 {[%clk 0:00:39.1]} 25... Rhc8 {[%clk 0:00:30.1]} 26. Ne5
{[%clk 0:00:37.9]} 26... Qe8 {[%clk 0:00:30.6]} 27. Rxc8 {[%clk 0:00:29.9]}
27... Qxa4 {[%clk 0:00:29.5]} 28. Rxa8 {[%clk 0:00:29.8]} 28... Qxb3 {[%clk
0:00:20.5]} 29. Ra7 {[%clk 0:00:29.3]} 29... Qb2 {[%clk 0:00:10.5]} 30. Rxf7+
{[%clk 0:00:27.9]} 30... Kg8 {[%clk 0:00:09.8]} 31. Rf6 {[%clk 0:00:24.6]} 31...
Bb4 {[%clk 0:00:09.6]} 32. Nd3 {[%clk 0:00:21]} 32... Qa3 {[%clk 0:00:06.1]} 33.
Rxe6 {[%clk 0:00:18.7]} 33... a5 {[%clk 0:00:06.2]} 34. Nf4 {[%clk 0:00:13.4]}
34... Be1 {[%clk 0:00:04.8]} 35. Nd3 {[%clk 0:00:10.7]} 35... Bc3 {[%clk
0:00:02.6]} 36. Re5 {[%clk 0:00:09.9]} 36... Qa2 {[%clk 0:00:02.4]} 37. Rxf5
{[%clk 0:00:08.2]} 37... a4 {[%clk 0:00:02.6]} 38. Rf6 {[%clk 0:00:06.3]} 38...
Kg7 {[%clk 0:00:02.6]} 39. Ra6 {[%clk 0:00:06]} 39... a3 {[%clk 0:00:02.9]} 40.
h4 {[%clk 0:00:02.9]} 40... Qb3 {[%clk 0:00:03.1]} 41. Kg2 {[%clk 0:00:01.9]}
41... a2 {[%clk 0:00:01.2]} 42. Nc5 {[%clk 0:00:02]} 42... Qb2 {[%clk
0:00:01.4]} 0-1

[Event "*** Titled Tuesday Blitz"]
[Site "Chess.com"]
[Date "2021.04.20"]
[Round "10"]
[White "Kobalia"]
[Black "Chernobay_Artem"]
[Result "1-0"]
[WhiteElo "2785"]
[BlackElo "2637"]
[TimeControl "180+1"]
[EndTime "11:55:38 PDT"]
[Termination "Kobalia won by resignation"]

1. e4 {[%clk 0:03:00.9]} 1... e6 {[%clk 0:02:59.6]} 2. d3 {[%clk 0:03:00.7]}
2... d5 {[%clk 0:03:00.2]} 3. Nd2 {[%clk 0:03:01.3]} 3... Nf6 {[%clk 0:02:59.9]}
4. Ngf3 {[%clk 0:03:01.2]} 4... c5 {[%clk 0:03:00.4]} 5. g3 {[%clk 0:03:01]}
5... Nc6 {[%clk 0:03:01.1]} 6. Bg2 {[%clk 0:03:01.3]} 6... Be7 {[%clk
0:03:01.6]} 7. O-O {[%clk 0:03:01.9]} 7... O-O {[%clk 0:03:02]} 8. Re1 {[%clk
0:03:02.5]} 8... b5 {[%clk 0:03:02.4]} 9. a4 {[%clk 0:03:02.7]} 9... b4 {[%clk
0:03:01.8]} 10. exd5 {[%clk 0:03:03]} 10... Nxd5 {[%clk 0:03:00.1]} 11. Nc4
{[%clk 0:03:02]} 11... Bf6 {[%clk 0:02:58.1]} 12. h4 {[%clk 0:03:00.4]} 12... h6
{[%clk 0:02:57.3]} 13. Nfd2 {[%clk 0:03:00.2]} 13... Bb7 {[%clk 0:02:51.1]} 14.
Ne4 {[%clk 0:02:59.2]} 14... Be7 {[%clk 0:02:51.7]} 15. Qh5 {[%clk 0:02:57.6]}
15... Nd4 {[%clk 0:02:45.6]} 16. Qd1 {[%clk 0:02:45]} 16... Rb8 {[%clk
0:02:29.5]} 17. c3 {[%clk 0:02:43.4]} 17... bxc3 {[%clk 0:02:27.8]} 18. bxc3
{[%clk 0:02:42.9]} 18... Nc6 {[%clk 0:02:15.8]} 19. Ba3 {[%clk 0:02:39.6]} 19...
Ba8 {[%clk 0:01:47.4]} 20. Qc2 {[%clk 0:02:33.8]} 20... Nb6 {[%clk 0:01:36.3]}
21. Nxc5 {[%clk 0:02:24.6]} 21... Nxc4 {[%clk 0:01:35.9]} 22. dxc4 {[%clk
0:02:25.4]} 22... Qc8 {[%clk 0:01:27.3]} 23. Ne4 {[%clk 0:02:05.4]} 23... Bxa3
{[%clk 0:01:25.1]} 24. Rxa3 {[%clk 0:02:06.3]} 24... Na5 {[%clk 0:01:23]} 25. c5
{[%clk 0:01:27.7]} 25... f5 {[%clk 0:01:22]} 26. Nd2 {[%clk 0:01:22.6]} 26...
Qxc5 {[%clk 0:01:21.1]} 27. Raa1 {[%clk 0:01:20.2]} 27... f4 {[%clk 0:01:05.9]}
28. Qg6 {[%clk 0:01:04.5]} 28... Rf6 {[%clk 0:00:54.8]} 29. Qg4 {[%clk
0:01:02.5]} 29... Qxc3 {[%clk 0:00:33.1]} 30. Bxa8 {[%clk 0:00:51.1]} 30... Qxd2
{[%clk 0:00:33.1]} 31. Rxe6 {[%clk 0:00:45.3]} 31... Qd4 {[%clk 0:00:32.4]} 32.
Rf1 {[%clk 0:00:29.7]} 32... Rxa8 {[%clk 0:00:32.3]} 33. Re7 {[%clk 0:00:24.4]}
33... Rff8 {[%clk 0:00:25.5]} 34. Rd1 {[%clk 0:00:20.5]} 34... h5 {[%clk
0:00:21.6]} 35. Qxh5 {[%clk 0:00:16.9]} 35... Qf6 {[%clk 0:00:05.4]} 36. Rdd7
{[%clk 0:00:16]} 36... Nc6 {[%clk 0:00:04]} 37. Rxg7+ {[%clk 0:00:09.6]} 37...
Qxg7 {[%clk 0:00:04.9]} 38. Rxg7+ {[%clk 0:00:09]} 38... Kxg7 {[%clk 0:00:05.4]}
39. Qg5+ {[%clk 0:00:09.2]} 39... Kh7 {[%clk 0:00:04.2]} 40. h5 {[%clk
0:00:09.1]} 40... Rf7 {[%clk 0:00:02.4]} 41. Qg6+ {[%clk 0:00:09.2]} 1-0

[Event "*** Titled Tuesday Blitz"]
[Site "Chess.com"]
[Date "2021.04.20"]
[Round "10"]
[White "MeekMammoth2"]
[Black "kai_nov"]
[Result "1-0"]
[WhiteElo "2459"]
[BlackElo "2308"]
[TimeControl "180+1"]
[EndTime "11:55:39 PDT"]
[Termination "MeekMammoth2 won on time"]

1. e4 {[%clk 0:03:00.9]} 1... c5 {[%clk 0:02:59.5]} 2. c3 {[%clk 0:03:01.2]}
2... Nf6 {[%clk 0:02:58.9]} 3. e5 {[%clk 0:03:01.4]} 3... Nd5 {[%clk 0:02:58.6]}
4. d4 {[%clk 0:03:02]} 4... cxd4 {[%clk 0:02:56.2]} 5. Nf3 {[%clk 0:03:02.6]}
5... Nc6 {[%clk 0:02:52.5]} 6. cxd4 {[%clk 0:03:02.7]} 6... d6 {[%clk
0:02:52.3]} 7. Bc4 {[%clk 0:03:03.1]} 7... dxe5 {[%clk 0:02:44.1]} 8. Nxe5
{[%clk 0:03:02.9]} 8... e6 {[%clk 0:02:38.6]} 9. O-O {[%clk 0:03:02.4]} 9... Be7
{[%clk 0:02:36]} 10. Nf3 {[%clk 0:02:52.6]} 10... O-O {[%clk 0:02:28.1]} 11. Nc3
{[%clk 0:02:53.2]} 11... Nf6 {[%clk 0:02:22.7]} 12. Re1 {[%clk 0:02:47.4]} 12...
a6 {[%clk 0:02:18.8]} 13. Bd3 {[%clk 0:02:34.7]} 13... b5 {[%clk 0:02:15.3]} 14.
a3 {[%clk 0:02:32.8]} 14... Bb7 {[%clk 0:02:12.2]} 15. Bc2 {[%clk 0:02:32.3]}
15... Rc8 {[%clk 0:02:09.2]} 16. Qd3 {[%clk 0:02:32.2]} 16... g6 {[%clk
0:02:05.3]} 17. Bh6 {[%clk 0:02:31]} 17... Re8 {[%clk 0:02:04.8]} 18. Rad1
{[%clk 0:02:26.1]} 18... b4 {[%clk 0:02:03.3]} 19. Na4 {[%clk 0:02:12.8]} 19...
Qa5 {[%clk 0:01:59.7]} 20. Ne5 {[%clk 0:02:02.9]} 20... Red8 {[%clk 0:01:31.5]}
21. Qf3 {[%clk 0:01:10.6]} 21... Nxe5 {[%clk 0:00:32.5]} 22. Qxb7 {[%clk
0:01:03.9]} 22... Rc7 {[%clk 0:00:31.2]} 23. axb4 {[%clk 0:00:43.1]} 23... Rxb7
{[%clk 0:00:27.9]} 24. bxa5 {[%clk 0:00:42.9]} 24... Nc4 {[%clk 0:00:22.6]} 25.
b3 {[%clk 0:00:25.8]} 25... Nxa5 {[%clk 0:00:21.1]} 26. Nc5 {[%clk 0:00:26.3]}
26... Rb6 {[%clk 0:00:17.4]} 27. Ra1 {[%clk 0:00:23.1]} 27... Nc6 {[%clk
0:00:15.1]} 28. Nxa6 {[%clk 0:00:10.7]} 28... Nxd4 {[%clk 0:00:14.5]} 29. Bd1
{[%clk 0:00:09.8]} 29... Ra8 {[%clk 0:00:12.6]} 30. Be3 {[%clk 0:00:07.9]} 30...
Rbxa6 {[%clk 0:00:08.7]} 31. Rxa6 {[%clk 0:00:07.4]} 31... Rxa6 {[%clk
0:00:09.1]} 32. Bxd4 {[%clk 0:00:07.9]} 32... Nd5 {[%clk 0:00:08]} 33. Bf3
{[%clk 0:00:07.1]} 33... Nf4 {[%clk 0:00:06.4]} 34. Rc1 {[%clk 0:00:06.8]} 34...
f6 {[%clk 0:00:05.1]} 35. g3 {[%clk 0:00:06.6]} 35... Nd5 {[%clk 0:00:04]} 36.
Re1 {[%clk 0:00:05.3]} 36... Kf7 {[%clk 0:00:03.8]} 37. Kg2 {[%clk 0:00:05.3]}
37... Ra2 {[%clk 0:00:02.8]} 38. Rc1 {[%clk 0:00:04.6]} 38... Bd6 {[%clk
0:00:02.1]} 39. Rc6 {[%clk 0:00:04.1]} 39... Ke7 {[%clk 0:00:01.7]} 40. Bxd5
{[%clk 0:00:02.4]} 40... exd5 {[%clk 0:00:01.8]} 41. Bxf6+ {[%clk 0:00:02.8]}
1-0